fUST/lending_fUST_20240920
["ID","MTS","AMOUNT","RATE_DAILY","PERIOD"]
[338607621,1726774244633,-151.0,0.00019041,2]
[338607622,1726774244645,-457.275291,0.00019041,2]
[338607623,1726774244656,-457.275291,0.00019041,2]
[338607624,1726774244666,-945.5129,0.00019041,2]
[338607625,1726774244676,-945.5129,0.00019041,2]
[338607626,1726774244685,-644.002852,0.00019041,2]
[338607627,1726774244695,-644.002856,0.00019041,2]
[338607628,1726774244705,-159.363237,0.00019041,2]
[338607629,1726774244716,-159.363229,0.00019041,2]
[338607630,1726774244725,-7618.47112057,0.00019047,2]
[338607631,1726774244735,-524.575754,0.00019047,2]
[338607632,1726774244744,-1524.258899,0.00019047,2]
[338607633,1726774244754,-2016.02022,0.00019047,2]
[338607634,1726774244763,-290.473907,0.00019047,2]
[338607635,1726774244774,-290.473913,0.00019047,2]
[338607636,1726774244784,-2016.020211,0.00019047,2]
[338607637,1726774244795,-151.0,0.00019047,2]
[338607638,1726774244804,-693.319727,0.00019047,2]
[338607639,1726774244815,-693.319729,0.00019047,2]
[338607640,1726774244824,-1000.0,0.00019049,2]
[338607641,1726774244834,-151.0,0.00019052,2]
[338607642,1726774244844,-152.51179,0.00019052,2]
[338607643,1726774244855,-151.0,0.00019062,2]
[338607644,1726774244866,-151.0,0.00019062,2]
[338607645,1726774244875,-151.0,0.00019062,2]
[338607646,1726774244886,-205.3103,0.00019062,2]
[338607647,1726774244896,-231.994287,0.00019062,2]
[338607648,1726774244906,-231.994287,0.00019062,2]
[338607649,1726774244917,-151.0,0.00019062,2]
[338607650,1726774244927,-524.575754,0.00019062,2]
[338607651,1726774244937,-151.0,0.00019062,2]
[338607652,1726774244946,-457.275291,0.00019062,2]
[338607653,1726774244956,-457.275291,0.00019062,2]
[338607654,1726774244966,-945.5129,0.00019062,2]
[338607655,1726774244975,-945.5129,0.00019062,2]
[338607656,1726774244986,-205.310308,0.00019066,2]
[338607657,1726774244996,-151.0,0.00019066,2]
[338607658,1726774245005,-500.0,0.00019073,2]
[338607659,1726774245015,-500.0,0.00019073,2]
[338607660,1726774245025,-230.33791163,0.00019073,2]
[338607661,1726774245035,-254.17818413,0.00019073,2]
[338607662,1726774245045,-510.05632153,0.00019073,2]
[338607663,1726774245055,-500.0,0.00019073,2]
[338607664,1726774245065,-464.22077848,0.00019073,2]
[338607665,1726774245075,-500.0,0.00019073,2]
[338607666,1726774245085,-500.0,0.00019073,2]
[338607667,1726774245095,-500.17054982,0.00019073,2]
[338607668,1726774245106,-412.53320827,0.00019073,2]
[338607669,1726774245116,-500.0,0.00019073,2]
[338607670,1726774245125,-500.0,0.00019073,2]
[338607671,1726774245137,-500.0,0.00019073,2]
[338607672,1726774245149,-231.994287,0.00019073,2]
[338607673,1726774245160,-231.994287,0.00019073,2]
[338607674,1726774245169,-151.0,0.00019073,2]
[338607675,1726774245179,-457.275291,0.00019073,2]
[338607676,1726774245189,-457.275291,0.00019073,2]
[338607677,1726774245199,-945.5129,0.00019073,2]
[338607678,1726774245209,-945.5129,0.00019073,2]
[338607679,1726774245224,-151.0,0.00019075,2]
[338607680,1726774245233,-151.0,0.00019076,2]
[338607681,1726774245243,-154.88231,0.00019076,2]
[338607682,1726774245254,-524.575754,0.00019076,2]
[338607683,1726774245265,-742.501,0.00019078,2]
[338607684,1726774245275,-1000.0,0.0001909,2]
[338607685,1726774245284,-231.994287,0.00019095,2]
[338607686,1726774245294,-231.99429,0.00019095,2]
[338607687,1726774245304,-150.01,0.00019095,2]
[338607688,1726774245314,-6716.0477148,0.00019095,2]
[338607689,1726774245324,-524.575754,0.00019098,2]
[338607690,1726774245333,-151.0,0.00019098,2]
[338607691,1726774245343,-457.275291,0.00019098,2]
[338607692,1726774245354,-457.275291,0.00019098,2]
[338607693,1726774245364,-945.5129,0.00019098,2]
[338607694,1726774245374,-945.5129,0.00019098,2]
[338607695,1726774245384,-184.0,0.000191,2]
[338607696,1726774245394,-1000.0,0.000191,2]
[338607697,1726774245404,-1012.63685709,0.000191,2]
[338607698,1726774245414,-150.112233,0.000191,2]
[338607699,1726774245424,-150.112233,0.000191,2]
[338607700,1726774245434,-1051.78,0.000191,2]
[338607701,1726774245443,-151.0,0.00019103,2]
[338607702,1726774245453,-524.575754,0.00019113,2]
[338607703,1726774245463,-154.89570091,0.00019121,2]
[338607704,1726774245473,-151.0,0.00019126,2]
[338607705,1726774245482,-500.0,0.00019132,3]
[338607706,1726774245492,-151.0,0.00019132,2]
[338607707,1726774245502,-1000.0,0.00019136,2]
[338607708,1726774245512,-845.423014,0.00019145,2]
[338607709,1726774245521,-6008.60953997,0.0001915,2]
[338607710,1726774245531,-299.361561,0.00019158,2]
[338607711,1726774245541,-634.59522513,0.00019163,2]
[338607712,1726774245551,-500.0,0.00019178,2]
[338607713,1726774245561,-500.0,0.00019178,2]
[338607714,1726774245572,-524.575754,0.00019178,2]
[338607715,1726774245582,-524.575744,0.00019178,2]
[338607716,1726774245593,-151.0,0.00019178,2]
[338607717,1726774245604,-457.275291,0.00019178,2]
[338607718,1726774245614,-457.275294,0.00019178,2]
[338607719,1726774245624,-945.5129,0.00019178,2]
[338607720,1726774245633,-945.512893,0.00019178,2]
[338607721,1726774245643,-2000.0,0.00019178,2]
[338607722,1726774245653,-2000.0,0.00019178,2]
[338607723,1726774245663,-2000.0,0.00019178,2]
[338607724,1726774245672,-2000.0,0.00019178,2]
[338607725,1726774245682,-2000.0,0.00019178,2]
[338607726,1726774245692,-2000.0,0.00019178,2]
[338607727,1726774245702,-2000.0,0.00019178,2]
[338607728,1726774245712,-2000.0,0.00019178,2]
[338607729,1726774245722,-2038.39514674,0.00019178,2]
[338607730,1726774245731,-153.0,0.00019178,2]
[338607731,1726774245741,-153.0,0.00019178,2]
[338607732,1726774245751,-153.0,0.00019178,2]
[338607733,1726774245760,-153.0,0.00019178,2]
[338607734,1726774245769,-153.0,0.00019178,2]
[338607735,1726774245778,-153.0,0.00019178,2]
[338607736,1726774245788,-153.0,0.00019178,2]
[338607737,1726774245798,-153.0,0.00019178,2]
[338607738,1726774245810,-153.0,0.00019178,2]
[338607739,1726774245820,-364.0,0.00019178,2]
[338607740,1726774245831,-364.0,0.00019178,2]
[338607741,1726774245841,-364.0,0.00019178,2]
[338607742,1726774245851,-364.0,0.00019178,2]
[338607743,1726774245862,-364.0,0.00019178,2]
[338607744,1726774245872,-364.0,0.00019178,2]
[338607745,1726774245882,-364.0,0.00019178,2]
[338607746,1726774245893,-364.0,0.00019178,2]
[338607747,1726774245903,-364.0,0.00019178,2]
[338607748,1726774245912,-364.0,0.00019178,2]
[338607749,1726774245922,-364.0,0.00019178,2]
[338607750,1726774245932,-364.0,0.00019178,2]
[338607751,1726774245941,-364.0,0.00019178,2]
[338607752,1726774245951,-153.0,0.00019178,2]
[338607753,1726774245961,-153.0,0.00019178,2]
[338607754,1726774245971,-153.0,0.00019178,2]
[338607755,1726774245980,-153.0,0.00019178,2]
[338607756,1726774245990,-153.0,0.00019178,2]
[338607757,1726774246000,-153.0,0.00019178,2]
[338607758,1726774246009,-153.0,0.00019178,2]
[338607759,1726774246019,-153.0,0.00019178,2]
[338607760,1726774246028,-153.0,0.00019178,2]
[338607761,1726774246039,-153.0,0.00019178,2]
[338607762,1726774246049,-153.0,0.00019178,2]
[338607763,1726774246059,-153.0,0.00019178,2]
[338607764,1726774246070,-153.0,0.00019178,2]
[338607765,1726774246081,-153.0,0.00019178,2]
[338607766,1726774246091,-364.0,0.00019178,2]
[338607767,1726774246100,-364.0,0.00019178,2]
[338607768,1726774246110,-364.0,0.00019178,2]
[338607769,1726774246119,-364.0,0.00019178,2]
[338607770,1726774246130,-364.0,0.00019178,2]
[338607771,1726774246140,-364.0,0.00019178,2]
[338607772,1726774246149,-364.0,0.00019178,2]
[338607773,1726774246159,-364.0,0.00019178,2]
[338607774,1726774246168,-364.0,0.00019178,2]
[338607776,1726774246179,-364.0,0.00019178,2]
[338607777,1726774246188,-364.0,0.00019178,2]
[338607779,1726774246198,-364.0,0.00019178,2]
[338607780,1726774246208,-364.0,0.00019178,2]
[338607781,1726774246221,-364.0,0.00019178,2]
[338607782,1726774246231,-153.0,0.00019178,2]
[338607783,1726774246240,-153.0,0.00019178,2]
[338607784,1726774246250,-153.0,0.00019178,2]
[338607785,1726774246259,-153.0,0.00019178,2]
[338607786,1726774246269,-153.0,0.00019178,2]
[338607787,1726774246278,-153.0,0.00019178,2]
[338607788,1726774246288,-153.0,0.00019178,2]
[338607789,1726774246297,-153.0,0.00019178,2]
[338607791,1726774246308,-153.0,0.00019178,2]
[338607792,1726774246317,-153.0,0.00019178,2]
[338607793,1726774246327,-153.0,0.00019178,2]
[338607794,1726774246337,-153.0,0.00019178,2]
[338607795,1726774246347,-153.0,0.00019178,2]
[338607796,1726774246358,-153.0,0.00019178,2]
[338607797,1726774246368,-364.0,0.00019178,2]
[338607798,1726774246377,-364.0,0.00019178,2]
[338607799,1726774246388,-364.0,0.00019178,2]
[338607800,1726774246398,-364.0,0.00019178,2]
[338607801,1726774246407,-364.0,0.00019178,2]
[338607802,1726774246418,-364.0,0.00019178,2]
[338607803,1726774246428,-364.0,0.00019178,2]
[338607804,1726774246438,-364.0,0.00019178,2]
[338607805,1726774246449,-364.0,0.00019178,2]
[338607806,1726774246459,-364.0,0.00019178,2]
[338607807,1726774246469,-364.0,0.00019178,2]
[338607808,1726774246480,-364.0,0.00019178,2]
[338607809,1726774246490,-364.0,0.00019178,2]
[338607810,1726774246501,-364.0,0.00019178,2]
[338607811,1726774246511,-153.0,0.00019178,2]
[338607812,1726774246520,-153.0,0.00019178,2]
[338607813,1726774246531,-153.0,0.00019178,2]
[338607814,1726774246540,-153.0,0.00019178,2]
[338607815,1726774246550,-153.0,0.00019178,2]
[338607816,1726774246560,-153.0,0.00019178,2]
[338607817,1726774246571,-153.0,0.00019178,2]
[338607818,1726774246581,-153.0,0.00019178,2]
[338607819,1726774246591,-153.0,0.00019178,2]
[338607820,1726774246603,-153.0,0.00019178,2]
[338607821,1726774246612,-153.0,0.00019178,2]
[338607822,1726774246622,-153.0,0.00019178,2]
[338607824,1726774246632,-153.0,0.00019178,2]
[338607825,1726774246642,-153.0,0.00019178,2]
[338607826,1726774246653,-364.0,0.00019178,2]
[338607828,1726774246663,-364.0,0.00019178,2]
[338607830,1726774246673,-364.0,0.00019178,2]
[338607831,1726774246683,-364.0,0.00019178,2]
[338607832,1726774246693,-364.0,0.00019178,2]
[338607833,1726774246703,-364.0,0.00019178,2]
[338607834,1726774246714,-364.0,0.00019178,2]
[338607835,1726774246723,-364.0,0.00019178,2]
[338607836,1726774246734,-364.0,0.00019178,2]
[338607837,1726774246744,-364.0,0.00019178,2]
[338607838,1726774246754,-364.0,0.00019178,2]
[338607839,1726774246764,-364.0,0.00019178,2]
[338607840,1726774246915,-364.0,0.00019178,2]
[338607841,1726774246928,-364.0,0.00019178,2]
[338607842,1726774246938,-153.0,0.00019178,2]
[338607843,1726774246949,-153.0,0.00019178,2]
[338607844,1726774246959,-153.0,0.00019178,2]
[338607845,1726774246969,-153.0,0.00019178,2]
[338607846,1726774246978,-153.0,0.00019178,2]
[338607847,1726774246988,-153.0,0.00019178,2]
[338607848,1726774246998,-153.0,0.00019178,2]
[338607849,1726774247007,-153.0,0.00019178,2]
[338607850,1726774247017,-153.0,0.00019178,2]
[338607851,1726774247027,-153.0,0.00019178,2]
[338607852,1726774247037,-153.0,0.00019178,2]
[338607853,1726774247046,-153.0,0.00019178,2]
[338607854,1726774247056,-153.0,0.00019178,2]
[338607855,1726774247065,-153.0,0.00019178,2]
[338607856,1726774247076,-364.0,0.00019178,2]
[338607857,1726774247085,-364.0,0.00019178,2]
[338607858,1726774247095,-364.0,0.00019178,2]
[338607859,1726774247106,-364.0,0.00019178,2]
[338607860,1726774247116,-364.0,0.00019178,2]
[338607861,1726774247125,-364.0,0.00019178,2]
[338607862,1726774247134,-364.0,0.00019178,2]
[338607863,1726774247143,-364.0,0.00019178,2]
[338607864,1726774247153,-364.0,0.00019178,2]
[338607865,1726774247164,-364.0,0.00019178,2]
[338607866,1726774247173,-364.0,0.00019178,2]
[338607867,1726774247182,-364.0,0.00019178,2]
[338607868,1726774247191,-364.0,0.00019178,2]
[338607869,1726774247202,-364.0,0.00019178,2]
[338607870,1726774247216,-153.0,0.00019178,2]
[338607871,1726774247228,-153.0,0.00019178,2]
[338607872,1726774247238,-153.0,0.00019178,2]
[338607873,1726774247248,-153.0,0.00019178,2]
[338607874,1726774247260,-153.0,0.00019178,2]
[338607875,1726774247270,-153.0,0.00019178,2]
[338607876,1726774247280,-153.0,0.00019178,2]
[338607877,1726774247291,-153.0,0.00019178,2]
[338607878,1726774247303,-153.0,0.00019178,2]
[338607879,1726774247313,-153.0,0.00019178,2]
[338607880,1726774247323,-153.0,0.00019178,2]
[338607881,1726774247333,-153.0,0.00019178,2]
[338607882,1726774247343,-153.0,0.00019178,2]
[338607883,1726774247352,-153.0,0.00019178,2]
[338607884,1726774247362,-364.0,0.00019178,2]
[338607885,1726774247372,-364.0,0.00019178,2]
[338607886,1726774247381,-364.0,0.00019178,2]
[338607887,1726774247392,-364.0,0.00019178,2]
[338607888,1726774247401,-364.0,0.00019178,2]
[338607889,1726774247410,-364.0,0.00019178,2]
[338607890,1726774247421,-364.0,0.00019178,2]
[338607891,1726774247431,-364.0,0.00019178,2]
[338607892,1726774247442,-364.0,0.00019178,2]
[338607893,1726774247452,-364.0,0.00019178,2]
[338607894,1726774247462,-364.0,0.00019178,2]
[338607895,1726774247472,-364.0,0.00019178,2]
[338607896,1726774247481,-364.0,0.00019178,2]
[338607897,1726774247491,-364.0,0.00019178,2]
[338607898,1726774247501,-153.0,0.00019178,2]
[338607899,1726774247511,-153.0,0.00019178,2]
[338607900,1726774247521,-153.0,0.00019178,2]
[338607901,1726774247530,-153.0,0.00019178,2]
[338607902,1726774247540,-153.0,0.00019178,2]
[338607903,1726774247550,-153.0,0.00019178,2]
[338607904,1726774247559,-153.0,0.00019178,2]
[338607905,1726774247569,-153.0,0.00019178,2]
[338607906,1726774247579,-153.0,0.00019178,2]
[338607907,1726774247588,-153.0,0.00019178,2]
[338607908,1726774247597,-153.0,0.00019178,2]
[338607909,1726774247613,-153.0,0.00019178,2]
[338607910,1726774247622,-153.0,0.00019178,2]
[338607911,1726774247632,-153.0,0.00019178,2]
[338607912,1726774247641,-364.0,0.00019178,2]
[338607913,1726774247651,-364.0,0.00019178,2]
[338607914,1726774247660,-364.0,0.00019178,2]
[338607915,1726774247669,-364.0,0.00019178,2]
[338607916,1726774247678,-364.0,0.00019178,2]
[338607917,1726774247688,-364.0,0.00019178,2]
[338607918,1726774247697,-364.0,0.00019178,2]
[338607919,1726774247706,-364.0,0.00019178,2]
[338607920,1726774247715,-364.0,0.00019178,2]
[338607921,1726774247726,-364.0,0.00019178,2]
[338607922,1726774247735,-364.0,0.00019178,2]
[338607923,1726774247745,-364.0,0.00019178,2]
[338607924,1726774247754,-364.0,0.00019178,2]
[338607925,1726774247763,-364.0,0.00019178,2]
[338607926,1726774247772,-151.0,0.00019178,2]
[338607927,1726774247782,-151.0,0.00019178,2]
[338607928,1726774247791,-151.0,0.00019178,2]
[338607929,1726774247800,-151.0,0.00019178,2]
[338607930,1726774247810,-151.0,0.00019178,2]
[338607931,1726774247820,-151.0,0.00019178,2]
[338607932,1726774247829,-151.0,0.00019178,2]
[338607933,1726774247838,-151.0,0.00019178,2]
[338607934,1726774247848,-151.0,0.00019178,2]
[338607935,1726774247859,-151.0,0.00019178,2]
[338607936,1726774247868,-151.0,0.00019178,2]
[338607937,1726774247877,-151.0,0.00019178,2]
[338607938,1726774247887,-151.0,0.00019178,2]
[338607939,1726774247896,-151.0,0.00019178,2]
[338607940,1726774247905,-151.0,0.00019178,2]
[338607941,1726774247915,-151.0,0.00019178,2]
[338607942,1726774247925,-258.858907,0.00019178,2]
[338607943,1726774247934,-237.00373,0.00019178,2]
[338607944,1726774247945,-190.890287,0.00019178,2]
[338607945,1726774247957,-492.91667,0.00019178,2]
[338607946,1726774247966,-492.91667,0.00019178,2]
[338607947,1726774247975,-492.91667,0.00019178,2]
[338607948,1726774247985,-492.91667,0.00019178,2]
[338607949,1726774247995,-492.91667,0.00019178,2]
[338607950,1726774248004,-492.91667,0.00019178,2]
[338607951,1726774248014,-492.91667,0.00019178,2]
[338607952,1726774248024,-492.91667,0.00019178,2]
[338607953,1726774248034,-492.91667,0.00019178,2]
[338607954,1726774248044,-492.91667,0.00019178,2]
[338607955,1726774248053,-492.91667,0.00019178,2]
[338607956,1726774248062,-492.91667,0.00019178,2]
[338607957,1726774248071,-492.91667,0.00019178,2]
[338607958,1726774248081,-492.91667,0.00019178,2]
[338607959,1726774248091,-492.91667,0.00019178,2]
[338607960,1726774248100,-492.91667,0.00019178,2]
[338607961,1726774248110,-492.91667,0.00019178,2]
[338607962,1726774248120,-492.91667,0.00019178,2]
[338607963,1726774248129,-492.91667,0.00019178,2]
[338607964,1726774248138,-492.91666,0.00019178,2]
[338607965,1726774248147,-444.9604716,0.00019178,4]
[338607966,1726774248157,-7704.8650997,0.00019178,2]
[338607967,1726774248287,-981.38619541,0.00019178,2]
[338608069,1726775431744,-2627.75533547,0.00016744,2]
[338608081,1726775437794,-109.23445223,0.00016744,2]
[338608082,1726775437805,-402.072117,0.00016898,2]
[338608083,1726775437816,-300.0,0.00017519,2]
[338608084,1726775437826,-2015.98822677,0.0001752,2]
[338608096,1726775439889,-22884.01177323,0.0001752,2]
[338608097,1726775439899,-500.0,0.00017808,2]
[338608098,1726775439908,-6416.70107582,0.0001813,2]
[338608099,1726775439917,-1070.8691512,0.00018145,2]
[338608100,1726775439926,-6416.70107582,0.00018392,2]
[338608101,1726775439935,-153.0,0.00018445,2]
[338608102,1726775439945,-306.0,0.00018445,2]
[338608103,1726775439954,-155.8108868,0.00018445,2]
[338608104,1726775439963,-153.0,0.00018445,2]
[338608105,1726775439973,-153.0,0.00018445,2]
[338608106,1726775439982,-153.0,0.0001846,2]
[338608107,1726775439991,-306.0,0.0001846,2]
[338608108,1726775440000,-153.0,0.0001846,2]
[338608109,1726775440009,-153.0,0.00018478,2]
[338608110,1726775440018,-898.0390387,0.0001848,2]
[338608111,1726775440027,-153.0,0.000186,2]
[338608112,1726775440036,-1070.8691512,0.00018645,2]
[338608113,1726775440046,-153.0,0.000187,2]
[338608114,1726775440054,-183.053999,0.00018745,2]
[338608115,1726775440063,-258.13367,0.00018745,2]
[338608116,1726775440072,-328.324221,0.00018745,2]
[338608117,1726775440081,-6416.70107582,0.00018818,2]
[338608118,1726775440090,-1000.0,0.00018822,2]
[338608119,1726775440099,-160.02586601,0.00018911,2]
[338608120,1726775440108,-237.72804819,0.00018911,2]
[338608121,1726775440118,-500.0,0.00018911,2]
[338608122,1726775440127,-175.75475454,0.00018911,2]
[338608123,1726775440137,-500.0,0.00018911,2]
[338608124,1726775440146,-500.0,0.00018911,2]
[338608125,1726775440155,-500.0,0.00018911,2]
[338608126,1726775440164,-500.0,0.00018911,2]
[338608127,1726775440174,-191.74462154,0.00018911,2]
[338608128,1726775440183,-500.0,0.00018911,2]
[338608129,1726775440193,-500.0,0.00018911,2]
[338608130,1726775440202,-500.0,0.00018911,2]
[338608131,1726775440211,-500.0,0.00018911,2]
[338608132,1726775440220,-500.0,0.00018911,2]
[338608133,1726775440229,-500.0,0.00018911,2]
[338608134,1726775440239,-500.0,0.00018911,2]
[338608135,1726775440248,-500.0,0.00018911,2]
[338608136,1726775440257,-500.0,0.00018911,2]
[338608137,1726775440266,-500.0,0.00018911,2]
[338608138,1726775440275,-500.0,0.00018911,2]
[338608139,1726775440284,-500.0,0.00018911,2]
[338608140,1726775440293,-500.0,0.00018911,2]
[338608141,1726775440302,-434.64608897,0.00018911,2]
[338608142,1726775440311,-63068.05176133,0.00018912,5]
[338608143,1726775440321,-13546.95148663,0.00018912,3]
[338608144,1726775440334,-3885.8903918,0.00018912,3]
[338608251,1726776632153,-300.0,0.00017016,2]
[338608252,1726776632165,-930.76209008,0.00017017,2]
[338608297,1726776639961,-22803.83621532,0.00017017,2]
[338608298,1726776640016,-1165.4016946,0.00017017,2]
[338608299,1726776640026,-1775.6825301,0.0001739,2]
[338608300,1726776640035,-201.036058,0.00017423,2]
[338608301,1726776640045,-179.23,0.0001752,2]
[338608302,1726776640055,-250.0,0.00017577,2]
[338608303,1726776640070,-500.0,0.00017808,2]
[338608304,1726776640079,-179.23,0.00017824,2]
[338608305,1726776640088,-179.23,0.00018129,2]
[338608306,1726776640098,-1708.8453946,0.00018145,2]
[338608307,1726776640108,-416.8471861,0.00018378,2]
[338608308,1726776640117,-179.23,0.00018433,2]
[338608309,1726776640127,-600.0,0.00018603,2]
[338608310,1726776640138,-1708.8453946,0.00018645,2]
[338608311,1726776640147,-420.0,0.00018718,2]
[338608312,1726776640156,-220.593835,0.00018745,2]
[338608313,1726776640166,-164.162111,0.00018745,2]
[338608314,1726776640175,-6416.70107582,0.00018849,2]
[338608315,1726776640184,-204.0,0.0001889,2]
[338608316,1726776640195,-150.112233,0.000189,2]
[338608317,1726776640204,-1000.0,0.00018907,2]
[338608318,1726776640213,-524.0,0.00018914,2]
[338608319,1726776640222,-150.0,0.00018914,2]
[338608320,1726776640233,-1216.0,0.00018914,2]
[338608321,1726776640242,-151.0,0.00018922,2]
[338608322,1726776640252,-258.13367,0.00018979,2]
[338608323,1726776640262,-328.324221,0.00018979,2]
[338608324,1726776640271,-151.0,0.00018993,2]
[338608325,1726776640281,-150.112233,0.00019,2]
[338608326,1726776640290,-1000.0,0.00019018,2]
[338608327,1726776640299,-1000.0,0.00019056,2]
[338608328,1726776640310,-742.501,0.0001906,2]
[338608329,1726776640319,-1000.0,0.00019067,2]
[338608330,1726776640328,-1000.0,0.00019068,2]
[338608331,1726776640337,-1000.0,0.00019069,2]
[338608332,1726776640346,-1619.91198468,0.00019078,2]
[338608333,1726776640356,-184.0,0.000191,2]
[338608334,1726776640365,-1082.72,0.000191,2]
[338608335,1726776640375,-150.112233,0.000191,2]
[338608336,1726776640384,-3012.63685709,0.000191,2]
[338608337,1726776640394,-150.0,0.000191,2]
[338608338,1726776640403,-618.0,0.000191,2]
[338608339,1726776640413,-154.89570091,0.00019121,2]
[338608340,1726776640422,-160.02586601,0.00019135,2]
[338608341,1726776640431,-175.75475454,0.00019135,2]
[338608342,1726776640441,-237.72804819,0.00019135,2]
[338608343,1726776640452,-500.0,0.00019135,2]
[338608344,1726776640461,-63068.05176133,0.00019136,5]
[338608345,1726776640470,-15233.5339253,0.00019136,5]
[338608346,1726776640479,-95743.5618599,0.00019136,3]
[338608347,1726776640489,-7822.57698634,0.00019136,3]
[338608348,1726776640498,-143615.34279,0.00019136,3]
[338608349,1726776640507,-11733.8654795,0.00019136,3]
[338608350,1726776640516,-1708.8453946,0.00019145,2]
[338608351,1726776640526,-1000.0,0.00019148,2]
[338608352,1726776640535,-844.20999661,0.00019158,3]
[338608402,1726776646209,-500.0,0.00019135,2]
[338608403,1726776646218,-500.0,0.00019135,2]
[338608404,1726776646227,-500.0,0.00019135,2]
[338608405,1726776646236,-500.0,0.00019135,2]
[338608406,1726776646246,-500.0,0.00019135,2]
[338608407,1726776646254,-500.0,0.00019135,2]
[338608408,1726776646264,-500.0,0.00019135,2]
[338608409,1726776646273,-500.0,0.00019135,2]
[338608410,1726776646282,-500.0,0.00019135,2]
[338608411,1726776646291,-500.0,0.00019135,2]
[338608412,1726776646300,-500.0,0.00019135,2]
[338608413,1726776646309,-500.0,0.00019135,2]
[338608414,1726776646319,-500.0,0.00019135,2]
[338608415,1726776646330,-434.64608897,0.00019135,2]
[338608416,1726776646339,-500.0,0.00019135,2]
[338608417,1726776646349,-500.0,0.00019135,2]
[338608418,1726776646358,-500.0,0.00019135,2]
[338608419,1726776646368,-500.0,0.00019135,2]
[338608420,1726776646377,-191.74462154,0.00019135,2]
[338608421,1726776646387,-743.0807068,0.00019158,3]
[338608525,1726777832042,-300.0,0.00017111,2]
[338608526,1726777832052,-322.35181148,0.00017112,2]
[338608527,1726777832064,-486.54876236,0.00017112,2]
[338608528,1726777832075,-2776.06602369,0.00017112,2]
[338608529,1726777832100,-473.83415027,0.00017112,2]
[338608531,1726777832112,-1381.46613896,0.00017112,2]
[338608602,1726778018530,-500.0,0.00023,120]
[338608609,1726778179365,713.0,0.00014013,2]
[338608660,1726779032381,-250.0,0.00015482,2]
[338608661,1726779032390,-372.11384583,0.00015646,2]
[338608662,1726779032402,-2450.71356957,0.00015646,2]
[338608663,1726779032411,-2981.48061409,0.000164,2]
[338608708,1726779040301,-1882.9142891,0.000164,2]
[338608709,1726779040311,-306.496909,0.00016448,2]
[338608710,1726779040321,-300.0,0.00016475,2]
[338608711,1726779040330,-300.0,0.00016475,2]
[338608713,1726779040339,-24900.0,0.00016476,2]
[338608714,1726779040348,-500.0,0.000165,2]
[338608716,1726779040358,-230.33791163,0.000165,2]
[338608718,1726779040368,-500.0,0.000165,2]
[338608720,1726779040382,-464.22077848,0.000165,2]
[338608722,1726779040392,-500.0,0.000165,2]
[338608724,1726779040401,-254.17818413,0.000165,2]
[338608725,1726779040411,-500.0,0.000165,2]
[338608726,1726779040421,-6310.99509019,0.00016876,2]
[338608727,1726779040430,-500.0,0.00017112,2]
[338608728,1726779040440,-500.0,0.00017112,2]